lending/lending_fUSD_20251124
["ID","MTS","AMOUNT","RATE_DAILY","PERIOD"]
[394804189,1763968240670,-500.0,0.00037807,8]
[394804190,1763968240681,-258.66547443,0.00037807,8]
[394804191,1763968240691,-500.0,0.00037807,8]
[394804192,1763968240700,-500.0,0.00037807,8]
[394804193,1763968240709,-500.0,0.00037807,8]
[394804194,1763968240718,-500.0,0.00037808,120]
[394804195,1763968240727,-500.0,0.00037873,5]
[394804196,1763968240737,-213.25357626,0.00037873,5]
[394804197,1763968240746,-500.0,0.00037873,5]
[394804198,1763968240755,-500.0,0.00037873,5]
[394804199,1763968240765,-417.61433429,0.00037873,2]
[394804200,1763968240774,-501.75431702,0.00037873,5]
[394804201,1763968240784,-500.65345159,0.00037873,5]
[394804202,1763968240793,-368.86223502,0.00037873,5]
[394804203,1763968240803,-500.0,0.00037873,5]
[394804204,1763968240813,-505.39968933,0.00037873,5]
[394804205,1763968240823,-639.26901875,0.00037873,5]
[394804206,1763968240832,-10000.0,0.00037876,2]
[394804207,1763968240842,-168.0,0.0003795,2]
[394804208,1763968240852,-500.0,0.00037973,5]
[394804209,1763968240861,-500.0,0.00037973,5]
[394804210,1763968240871,-500.0,0.00037976,8]
[394804211,1763968240880,-903.351,0.00037976,50]
[394804212,1763968240889,-582.79,0.00037979,2]
[394804213,1763968240899,-582.36393356,0.00037979,8]
[394804214,1763968240909,-500.0,0.00037979,8]
[394804215,1763968240922,-500.0,0.0003798,8]
[394804216,1763968240931,-585.50038755,0.0003798,8]
[394804217,1763968240942,-500.0,0.0003798,8]
[394804218,1763968240951,-500.0,0.0003798,8]
[394804219,1763968240960,-500.0,0.0003798,8]
[394804220,1763968240970,-500.0,0.0003798,8]
[394804221,1763968240979,-500.0,0.0003798,8]
[394804222,1763968240988,-251.56417173,0.0003798,8]
[394804223,1763968240997,-500.0,0.0003798,8]
[394804224,1763968241007,-500.0,0.0003798,8]
[394804225,1763968241016,-505.97763007,0.0003798,8]
[394804226,1763968241025,-500.0,0.0003798,8]
[394804227,1763968241034,-507.86176218,0.0003798,8]
[394804228,1763968241044,-537.98399219,0.0003798,8]
[394804229,1763968241053,-500.0,0.0003798,8]
[394804230,1763968241062,-643.27081144,0.0003798,8]
[394804231,1763968241071,-256.43694921,0.0003798,8]
[394804232,1763968241080,-500.0,0.0003798,8]
[394804233,1763968241090,-500.0,0.0003798,8]
[394804234,1763968241099,-500.0,0.0003798,8]
[394804235,1763968241108,-1762.09206938,0.00037992,2]
[394804236,1763968241117,-168.0,0.00038073,2]
[394804237,1763968241127,-168.0,0.00038073,2]
[394804238,1763968241136,-500.0,0.00038081,8]
[394804239,1763968241145,-168.0,0.0003825,2]
[394804240,1763968241154,-500.0,0.0003825,8]
[394804241,1763968241163,-582.79,0.00038253,2]
[394804242,1763968241172,-1000.0,0.00038254,2]
[394804243,1763968241183,-1000.0,0.00038254,2]
[394804244,1763968241192,-1000.0,0.00038254,2]
[394804245,1763968241201,-1000.0,0.00038254,2]
[394804246,1763968241211,-1000.0,0.00038254,2]
[394804247,1763968241220,-1000.0,0.00038254,2]
[394804248,1763968241229,-1000.0,0.00038254,2]
[394804249,1763968241239,-500.0,0.00038254,8]
[394804250,1763968241248,-168.0,0.00038323,2]
[394804251,1763968241257,-262.61254068,0.00038355,8]
[394804252,1763968241266,-1000.0,0.00038421,5]
[394804253,1763968241276,-330.84454354,0.00038421,5]
[394804254,1763968241285,-168.0,0.00038483,2]
[394804255,1763968241294,-582.79,0.00038527,2]
[394804256,1763968241308,-267.37,0.00038528,8]
[394804257,1763968241317,-166.66,0.00038569,30]
[394804258,1763968241326,-1320.0,0.00038585,2]
[394804259,1763968241336,-609.0,0.00038585,2]
[394804260,1763968241346,-1601.0,0.00038585,2]
[394804261,1763968241355,-822.0,0.00038585,2]
[394804262,1763968241364,-575.652,0.00038585,2]
[394804263,1763968241374,-659.0,0.00038585,2]
[394804264,1763968241384,-305.307,0.00038585,2]
[394804265,1763968241393,-150.6,0.00038754,2]
[394804266,1763968241403,-582.79,0.00038801,2]
[394804267,1763968241412,-150.0,0.00038919,2]
[394804268,1763968241422,-150.0,0.00038919,120]
[394804269,1763968241433,-160.73,0.00038933,30]
[394804270,1763968241443,-529.97,0.00038975,120]
[394804271,1763968241452,-155.55,0.00038984,2]
[394804272,1763968241461,-500.0,0.00038997,2]
[394804273,1763968241471,-582.79,0.00039075,2]
[394804274,1763968241480,-166.66,0.00039349,30]
[394804275,1763968241490,-582.79,0.00039349,2]
[394804276,1763968241499,-157.28534256,0.00039362,2]
[394804277,1763968241509,-582.79,0.00039623,2]
[394804278,1763968241518,-344.29,0.00039673,2]
[394804279,1763968241528,-200.0,0.00039688,2]
[394804280,1763968241537,-202.44,0.00039716,2]
[394804281,1763968241546,-653.0,0.0003977,20]
[394804282,1763968241556,-500.0,0.00039811,120]
[394804283,1763968241566,-582.79,0.00039897,2]
[394804284,1763968241575,-1010.3864859,0.0004,30]
[394804285,1763968241585,-25049.6207,0.0004,2]
[394804286,1763968241594,-166.66,0.00040128,30]
[394804287,1763968241604,-168.0,0.00040168,7]
[394804288,1763968241618,-582.79,0.00040171,2]
[394804289,1763968241627,-653.0,0.0004018,20]
[394804290,1763968241636,-250.0,0.00040191,2]
[394804291,1763968241646,-500.0,0.00040277,7]
[394804292,1763968241657,-500.0,0.00040277,7]
[394804293,1763968241666,-582.79,0.00040445,2]
[394804294,1763968241675,-653.0,0.0004059,20]
[394804295,1763968241688,-24533.1942,0.00040615,2]
[394804296,1763968241699,-639.78414144,0.00040659,2]
[394804297,1763968241709,-582.79,0.00040719,2]
[394804298,1763968241718,-166.66,0.00040907,30]
[394804299,1763968241727,-2276.3,0.00040921,2]
[394804300,1763968241737,-500.0,0.00040973,5]
[394804301,1763968241746,-582.79,0.00040993,2]
[394804302,1763968241756,-789.18466045,0.00040999,120]
[394804303,1763968241765,-653.0,0.00041,20]
[394804304,1763968241774,-17334.64270827,0.00041,30]
[394804305,1763968241783,-186.29062072,0.00041,30]
[394804306,1763968241792,-231.78327925,0.00041,120]
[394804307,1763968241802,-500.0,0.00041099,60]
[394804308,1763968241812,-537.0,0.000411,2]
[394804309,1763968241821,-600.0,0.000411,2]
[394804310,1763968241830,-582.79,0.00041267,2]
[394804311,1763968241839,-653.0,0.0004141,20]
[394804312,1763968241849,-3410.49439048,0.0004151,2]
[394804313,1763968241858,-1079.88417633,0.00041521,10]
[394804314,1763968241867,-159.61533955,0.00041536,8]
[394804315,1763968241876,-519.94406956,0.00041536,8]
[394804316,1763968241885,-500.0,0.00041536,8]
[394804317,1763968241895,-500.0,0.00041536,8]
[394804318,1763968241904,-500.0,0.00041536,8]
[394804319,1763968241913,-500.0,0.00041536,8]
[394804320,1763968241923,-500.0,0.00041536,8]
[394804321,1763968241933,-7312.3775111,0.00041537,30]
[394804322,1763968241942,-582.79,0.00041541,2]
[394804323,1763968241952,-1316.0,0.00041585,2]
[394804324,1763968241961,-1601.0,0.00041585,2]
[394804325,1763968241970,-822.0,0.00041585,2]
[394804326,1763968241980,-500.0,0.00041647,60]
[394804327,1763968241989,-177.21559648,0.00041711,28]
[394804328,1763968241998,-2000.0,0.00041711,3]
[394804329,1763968242008,-1000.0,0.00041721,2]
[394804330,1763968242017,-1000.0,0.00041721,2]
[394804331,1763968242026,-2500.0,0.00041721,2]
[394804332,1763968242036,-5000.0,0.00041721,120]
[394804333,1763968242045,-155.76565566,0.00041721,4]
[394804334,1763968242056,-160.43265612,0.00041721,15]
[394804335,1763968242067,-218.8231771,0.00041725,2]
[394804336,1763968242077,-160.43265611,0.00041744,15]
[394804337,1763968242087,-177.21559646,0.00041762,28]
[394804338,1763968242098,-160.43265611,0.00041767,15]
[394804339,1763968242107,-160.43265611,0.0004179,15]
[394804340,1763968242116,-614.74723283,0.00041803,15]
[394804341,1763968242126,-500.0,0.0004181,8]
[394804342,1763968242135,-33653.7330021,0.00041811,4]
[394804343,1763968242144,-150.62,0.00041811,2]
[394804344,1763968242154,-1529.71513646,0.00041811,4]
[394804345,1763968242163,-614.74723283,0.00041813,15]
[394804346,1763968242172,-177.21559646,0.00041813,28]
[394804347,1763968242181,-160.43265611,0.00041813,15]
[394804348,1763968242191,-2135.89955538,0.00041813,2]
[394804349,1763968242200,-582.79,0.00041815,2]
[394804350,1763968242209,-500.0,0.00041819,8]
[394804351,1763968242219,-257.49,0.00041819,8]
[394804352,1763968242228,-1534.88,0.00041819,8]
[394804353,1763968242237,-500.0,0.00041819,8]
[394804354,1763968242247,-533.23985474,0.00041819,8]
[394804355,1763968242257,-500.0,0.00041819,8]
[394804356,1763968242267,-192.29956311,0.00041819,8]
[394804357,1763968242276,-500.0,0.00041819,8]
[394804358,1763968242286,-500.0,0.00041819,8]
[394804359,1763968242296,-341.10129011,0.00041819,8]
[394804360,1763968242306,-500.0,0.00041819,8]
[394804361,1763968242315,-500.0,0.00041819,8]
[394804362,1763968242326,-186.17470191,0.00041819,8]
[394804363,1763968242335,-275.5,0.00041819,8]
[394804364,1763968242344,-500.0,0.00041819,8]
[394804365,1763968242354,-500.0,0.00041819,8]
[394804366,1763968242364,-6345.0,0.0004182,7]
[394804367,1763968242376,-1226.10346467,0.0004182,120]
[394804368,1763968242386,-504.30645096,0.0004182,8]
[394804369,1763968242396,-500.0,0.0004182,8]
[394804370,1763968242406,-524.31174731,0.0004182,8]
[394804371,1763968242415,-500.0,0.0004182,8]
[394804372,1763968242425,-500.0,0.0004182,8]
[394804373,1763968242435,-653.0,0.0004182,20]
[394804374,1763968242444,-500.0,0.0004182,8]
[394804375,1763968242454,-723.91,0.0004182,8]
[394804376,1763968242474,-500.0,0.0004182,8]
[394804377,1763968242484,-500.0,0.0004182,8]
[394804378,1763968242493,-500.0,0.0004182,8]
[394804379,1763968242503,-500.0,0.0004182,8]
[394804380,1763968242513,-500.0,0.0004182,8]
[394804381,1763968242523,-521.13724328,0.0004182,8]
[394804382,1763968242533,-500.0,0.0004182,8]
[394804383,1763968242542,-623.86,0.0004182,8]
[394804384,1763968242552,-500.0,0.0004182,8]
[394804385,1763968242562,-500.0,0.0004182,8]
[394804386,1763968242571,-500.0,0.0004182,8]
[394804387,1763968242581,-500.0,0.0004182,8]
[394804388,1763968242591,-500.0,0.0004182,8]
[394804389,1763968242604,-500.0,0.0004182,8]
[394804390,1763968242615,-500.0,0.0004182,8]
[394804391,1763968242624,-500.0,0.0004182,8]
[394804392,1763968242634,-164.78431013,0.0004182,8]
[394804393,1763968242643,-500.0,0.0004182,8]
[394804394,1763968242652,-500.0,0.0004182,8]
[394804395,1763968242662,-503.48688054,0.0004182,8]
[394804396,1763968242672,-500.0,0.0004182,8]
[394804397,1763968242683,-500.0,0.0004182,8]
[394804398,1763968242693,-500.0,0.0004182,8]
[394804399,1763968242703,-500.0,0.0004182,8]
[394804400,1763968242712,-500.0,0.0004182,8]
[394804401,1763968242723,-500.0,0.0004182,8]
[394804402,1763968242732,-500.0,0.0004182,8]
[394804403,1763968242742,-500.0,0.0004182,8]
[394804404,1763968242752,-500.0,0.0004182,8]
[394804405,1763968242762,-500.0,0.0004182,8]
[394804406,1763968242772,-500.0,0.0004182,8]
[394804407,1763968242781,-500.0,0.0004182,8]
[394804408,1763968242791,-500.0,0.0004182,8]
[394804409,1763968242801,-500.0,0.0004182,8]
[394804410,1763968242811,-500.0,0.0004182,8]
[394804411,1763968242821,-500.0,0.0004182,8]
[394804412,1763968242831,-504.16221475,0.0004182,8]
[394804413,1763968242841,-500.0,0.0004182,8]
[394804414,1763968242850,-500.0,0.0004182,8]
[394804415,1763968242859,-500.0,0.0004182,8]
[394804416,1763968242869,-500.0,0.0004182,8]
[394804417,1763968242879,-500.0,0.0004182,8]
[394804418,1763968242888,-518.00528544,0.0004182,8]
[394804419,1763968242897,-290.45266139,0.0004182,8]
[394804420,1763968242907,-500.0,0.0004182,8]
[394804421,1763968242916,-503.81453196,0.0004182,8]
[394804422,1763968242926,-500.0,0.0004182,8]
[394804423,1763968242935,-500.0,0.0004182,8]
[394804424,1763968242944,-500.0,0.0004182,8]
[394804425,1763968242954,-500.0,0.0004182,8]
[394804426,1763968242964,-500.0,0.0004182,8]
[394804427,1763968242975,-500.0,0.0004182,8]
[394804428,1763968242985,-500.0,0.0004182,8]
[394804429,1763968242996,-439.00708877,0.0004182,8]
[394804430,1763968243005,-509.10078109,0.0004182,8]
[394804431,1763968243015,-552.1086928,0.0004182,8]
[394804432,1763968243024,-446.90092834,0.0004182,8]
[394804433,1763968243034,-500.0,0.0004182,8]
[394804434,1763968243043,-500.0,0.0004182,8]
[394804435,1763968243053,-500.0,0.0004182,8]
[394804437,1763968243063,-500.0,0.0004182,8]
[394804439,1763968243073,-500.0,0.0004182,8]
[394804440,1763968243083,-500.0,0.0004182,8]
[394804441,1763968243092,-500.0,0.0004182,8]
[394804442,1763968243102,-500.0,0.0004182,8]
[394804443,1763968243111,-500.0,0.0004182,8]
[394804444,1763968243121,-500.0,0.0004182,2]
[394804445,1763968243131,-500.0,0.0004182,2]
[394804446,1763968243141,-500.0,0.0004182,2]
[394804447,1763968243152,-500.0,0.0004182,2]
[394804448,1763968243161,-500.0,0.0004182,8]
[394804449,1763968243171,-500.0,0.0004182,8]
[394804450,1763968243182,-500.0,0.0004182,8]
[394804451,1763968243191,-500.0,0.0004182,8]
[394804452,1763968243201,-500.0,0.0004182,8]
[394804453,1763968243210,-500.0,0.0004182,8]
[394804454,1763968243220,-578.64,0.0004182,8]
[394804455,1763968243230,-500.0,0.0004182,8]
[394804456,1763968243239,-500.0,0.0004182,8]
[394804457,1763968243249,-350.58994301,0.0004182,8]
[394804458,1763968243399,-149.41005699,0.0004182,8]
[394804459,1763968243408,-500.0,0.0004182,8]
[394804460,1763968243418,-500.0,0.0004182,8]
[394804461,1763968243428,-500.0,0.0004182,8]
[394804462,1763968243438,-500.0,0.0004182,8]
[394804463,1763968243448,-500.0,0.0004182,8]
[394804464,1763968243457,-500.0,0.0004182,8]
[394804465,1763968243467,-500.0,0.0004182,8]
[394804466,1763968243477,-361.10747187,0.0004182,8]
[394804467,1763968243570,-138.89252813,0.0004182,8]
[394804468,1763968243580,-500.0,0.0004182,8]
[394804469,1763968243589,-231.49273421,0.0004182,8]
[394804476,1763968244207,-911.685,0.00038431,2]
[394804477,1763968244217,-168.0,0.00040074,7]
[394804478,1763968244226,-908.0,0.00041431,2]
[394804479,1763968244236,-268.50726579,0.0004182,8]
[394804480,1763968244246,-421.48273426,0.0004182,8]
[394804481,1763968245179,-1762.09206938,0.00038538,2]
[394804482,1763968245191,-171.57726574,0.0004182,8]
[394804483,1763968245201,-500.0,0.0004182,8]
[394804484,1763968245211,-500.0,0.0004182,8]
[394804485,1763968245221,-500.0,0.0004182,8]
[394804486,1763968245230,-742.16,0.0004182,8]
[394804488,1763968245240,-101.65375397,0.0004182,8]
[394804492,1763968335479,539.01451013,0.00017,30]
[394804498,1763969154237,1650.0,0.0002,2]
[394804515,1763969431643,-5139.76544915,0.000162,5]
[394804516,1763969431653,-345.64601912,0.000199,2]
[394804517,1763969431663,-913.08861775,0.0002,2]
[394804518,1763969431672,-300.0,0.00021999,2]
[394804519,1763969431682,-1200.0,0.00021999,2]
[394804520,1763969431692,-13873.99991398,0.00022,4]
[394804521,1763969431704,-3753.07156661,0.00022,4]
[394804522,1763969431715,-2759.78193718,0.00022,4]
[394804523,1763969431725,-333.30653703,0.000221,2]
[394804524,1763969431735,-157.66654876,0.000221,2]
[394804525,1763969431744,-238.60026696,0.0002211,2]
[394804526,1763969431754,-1200.0,0.00022499,2]
[394804527,1763969431764,-3284.12505428,0.000225,2]
[394804528,1763969431775,-1650.0,0.000225,2]
[394804529,1763969431797,-440.7029873,0.000225,2]
[394804530,1763969431807,-345.64601911,0.00025893,2]
[394804531,1763969431816,-345.64601911,0.00031885,2]
[394804532,1763969431825,-154.84,0.0003685,2]
[394804533,1763969431834,-168.0,0.00037487,2]
[394804534,1763969431843,-500.0,0.00037534,120]
[394804535,1763969431852,-150.0,0.00037751,7]
[394804536,1763969431862,-150.0,0.00037751,7]
[394804537,1763969431871,-150.0,0.00037751,7]
[394804539,1763969431880,-151.69825373,0.00037751,7]
[394804541,1763969431889,-150.0,0.00037751,7]
[394804543,1763969431899,-150.0,0.00037751,7]
[394804545,1763969431909,-150.0,0.00037751,7]
[394804547,1763969431918,-150.49990528,0.00037751,7]
[394804549,1763969431927,-150.0,0.00037751,7]
[394804550,1763969431937,-150.0,0.00037751,7]
[394804551,1763969431951,-150.0,0.00037751,7]
[394804552,1763969431961,-500.0,0.00037808,120]
[394804553,1763969431971,-300.0,0.00037877,2]
[394804555,1763969431980,-276.55037652,0.00037878,2]
[394804557,1763969431993,-69.09564259,0.00037878,2]
[394804559,1763969432003,-936.221,0.00037978,50]
[394804561,1763969432012,-494.68335741,0.00037978,2]
[394804563,1763969432023,-429.36952223,0.00037978,2]
[394804701,1763969437532,-9075.93712036,0.00037978,2]
[394804702,1763969437542,-150.99,0.00037978,2]
[394804703,1763969437551,-546.32,0.00037979,8]
[394804704,1763969437561,-500.0,0.00037979,8]
[394804705,1763969437570,-500.0,0.00037979,8]
[394804706,1763969437580,-538.9,0.00037979,8]
[394804707,1763969437589,-500.0,0.00037979,8]
[394804708,1763969437599,-500.0,0.00037979,8]
[394804709,1763969437608,-205.89326415,0.00037979,8]
[394804710,1763969437617,-500.0,0.00037979,8]
[394804711,1763969437625,-500.0,0.00037979,8]
[394804712,1763969437635,-158.96394041,0.00038,120]
[394804713,1763969437645,-171.0,0.00038,120]
[394804714,1763969437654,-500.0,0.00038082,120]
[394804715,1763969437663,-1073.5617882,0.00038099,2]
[394804716,1763969437673,-201.25,0.00038106,2]
[394804717,1763969437683,-500.0,0.00038253,8]
[394804718,1763969437693,-500.0,0.00038253,8]
[394804719,1763969437704,-150.0,0.0003845,7]
[394804720,1763969437713,-500.0,0.00038527,8]
[394804721,1763969437723,-500.0,0.00038527,8]
[394804722,1763969437733,-150.0,0.0003859,7]
[394804723,1763969437743,-500.0,0.00038671,2]
[394804724,1763969437752,-150.0,0.00038799,7]
[394804725,1763969437761,-150.0,0.00038799,7]
[394804726,1763969437770,-500.0,0.00038801,8]
[394804727,1763969437780,-3437.0,0.00038941,2]
[394804728,1763969437789,-2660.0,0.00038941,2]
[394804730,1763969437799,-6499.0,0.00038941,2]
[394804732,1763969437809,-1320.0,0.00038941,2]
[394804734,1763969437818,-561.0,0.00038941,2]
[394804736,1763969437828,-1503.83740008,0.00039,2]
[394804738,1763969437837,-168.0,0.00039021,2]
[394804740,1763969437846,-1000.0,0.00039037,2]
[394804742,1763969437855,-27775.03,0.00039108,2]
[394804744,1763969437865,-150.0,0.00039149,7]
[394804746,1763969437875,-150.0,0.00039149,7]
[394804748,1763969437884,-500.0,0.00039173,5]
[394804750,1763969437894,-501.02581299,0.00039173,5]
[394804752,1763969437904,-500.0,0.00039173,5]
[394804754,1763969437914,-277.27918966,0.00039173,5]
[394804756,1763969437923,-504.41368828,0.00039173,5]
[394804758,1763969437932,-505.0559587,0.00039173,5]
[394804760,1763969437943,-8429.02,0.000394,38]
[394804762,1763969437955,-2755.05,0.00039402,2]
[394804764,1763969437964,-150.0,0.00039428,7]
[394804766,1763969437973,-1000.0,0.000395,10]
[394804768,1763969437984,-500.0,0.000395,10]
[394804770,1763969437993,-500.0,0.000395,15]
[394804771,1763969438004,-500.0,0.000395,15]
[394804774,1763969438014,-500.0,0.000395,15]
[394804775,1763969438024,-1000.0,0.000395,15]
[394804777,1763969438033,-1000.0,0.000395,15]
[394804779,1763969438043,-1000.0,0.000395,30]
[394804781,1763969438052,-1000.0,0.000395,30]
[394804783,1763969438061,-297.0,0.000395,30]
[394804785,1763969438071,-157.28534256,0.00039513,2]
[394804787,1763969438080,-1000.0,0.00039721,5]
[394804789,1763969438089,-500.0,0.00039721,5]
[394804791,1763969438099,-150.0,0.00039848,7]
[394804793,1763969438110,-150.0,0.00039848,7]
[394804795,1763969438119,-150.0,0.00039848,7]
[394804797,1763969438128,-150.0,0.00039848,7]
[394804799,1763969438137,-1246.11,0.0004,60]
[394804800,1763969438147,-1029.95,0.0004,2]
[394804803,1763969438156,-1010.58945076,0.0004,30]
[394804804,1763969438166,-170.0,0.0004,120]
[394804806,1763969438176,-88475.2384,0.00040071,2]
[394804808,1763969438185,-166.8,0.00040217,2]
[394804810,1763969438195,-500.0,0.00040267,120]
[394804812,1763969438205,-150.0,0.00040267,7]
[394804814,1763969438214,-373.82711877,0.00040268,5]
[394804816,1763969438226,-500.0,0.00040277,7]
[394804818,1763969438237,-500.0,0.00040277,7]
[394804820,1763969438246,-1000.0,0.0004049,2]
[394804823,1763969438257,-2000.0,0.000405,60]
[394804825,1763969438266,-150.0,0.00040547,7]
[394804827,1763969438275,-150.0,0.00040547,7]
[394804829,1763969438285,-639.78414144,0.00040659,2]
[394804831,1763969438294,-300.0,0.00040752,2]
[394804832,1763969438304,-2500.0,0.00040797,2]
[394804834,1763969438314,-150.0,0.00040897,7]
[394804836,1763969438323,-150.0,0.00040897,7]
[394804838,1763969438332,-153.0,0.00040911,120]
[394804840,1763969438342,-500.0,0.00040999,8]
[394804842,1763969438351,-500.0,0.00040999,8]
[394804844,1763969438361,-500.0,0.00040999,8]
[394804846,1763969438370,-504.41589576,0.00040999,8]
[394804848,1763969438380,-500.0,0.00040999,8]
[394804850,1763969438390,-509.38841321,0.00040999,8]
[394804852,1763969438400,-500.0,0.00040999,8]
[394804854,1763969438411,-500.0,0.00040999,8]
[394804856,1763969438421,-500.0,0.00040999,8]
[394804858,1763969438430,-500.0,0.00040999,8]
[394804860,1763969438440,-500.0,0.00040999,8]
[394804862,1763969438449,-500.0,0.00040999,8]
[394804864,1763969438458,-504.30645096,0.00040999,8]
[394804866,1763969438467,-500.0,0.00040999,2]
[394804868,1763969438477,-159.61533955,0.00040999,8]
[394804869,1763969438486,-500.0,0.00040999,8]
[394804871,1763969438496,-500.0,0.00040999,8]
[394804874,1763969438506,-519.94406956,0.00040999,8]
[394804875,1763969438516,-409.26912338,0.00040999,8]
[394804877,1763969438526,-500.0,0.00040999,8]
[394804879,1763969438535,-500.0,0.00040999,8]
[394804881,1763969438544,-500.0,0.00040999,8]
[394804883,1763969438553,-500.0,0.00040999,8]
[394804885,1763969438563,-500.0,0.00040999,8]
[394804904,1763969438751,-500.0,0.00040999,8]
[394804906,1763969438771,-500.0,0.00040999,8]
[394804908,1763969438780,-500.0,0.00040999,8]
[394804910,1763969438790,-1000.64978974,0.00041,120]
[394804912,1763969438800,-13256.17911861,0.00041,9]
[394804914,1763969438810,-2000.0,0.00041,60]
[394804916,1763969438820,-3011.17,0.00041,120]
[394804918,1763969438829,-169.6,0.00041096,2]
[394804920,1763969438839,-500.0,0.00041099,60]
[394804922,1763969438848,-150.0,0.00041106,30]
[394804924,1763969438857,-150.0,0.00041246,30]
[394804926,1763969438867,-484.88,0.00041273,8]
[394804928,1763969438877,-500.0,0.00041273,8]
[394804930,1763969438886,-429.65,0.00041273,8]
[394804932,1763969438896,-500.0,0.00041273,2]
[394804934,1763969438905,-524.31174731,0.00041273,8]
[394804936,1763969438915,-555.61,0.00041273,8]
[394804937,1763969438924,-500.0,0.00041273,8]
[394804939,1763969438934,-500.0,0.00041273,8]
[394804941,1763969438947,-500.0,0.00041273,8]
[394804943,1763969438957,-152.47,0.00041273,8]
[394804945,1763969438967,-1200.0,0.000414,2]
[394804947,1763969438976,-538.00774836,0.000414,2]
[394804949,1763969438986,-592.49368,0.000414,9]
[394804951,1763969438995,-3410.49439048,0.0004141,2]
[394804953,1763969439005,-218.8231771,0.00041417,2]
[394804955,1763969439015,-2987.5623021,0.00041436,2]
[394804957,1763969439025,-2000.0,0.000415,60]
[394804959,1763969439035,-204.56195903,0.00041534,7]
[394804961,1763969439044,-421.06398491,0.00041534,2]
[394804963,1763969439053,-183.02053666,0.00041534,7]
[394804964,1763969439063,-619.30534181,0.00041534,15]
[394804965,1763969439073,-500.0,0.00041534,31]
[394804966,1763969439082,-197.95867,0.00041534,31]
[394804967,1763969439091,-500.0,0.00041534,31]
[394804968,1763969439102,-500.0,0.00041534,31]
[394804969,1763969439111,-500.0,0.00041534,31]
[394804970,1763969439124,-500.0,0.00041534,31]
[394804971,1763969439134,-467.03523494,0.00041534,31]
[394804972,1763969439143,-500.0,0.00041534,31]
[394804973,1763969439153,-500.0,0.00041534,31]
[394804974,1763969439163,-500.0,0.00041534,31]
[394804975,1763969439172,-500.0,0.00041534,31]
[394804976,1763969439182,-500.0,0.00041534,31]
[394804977,1763969439191,-500.0,0.00041534,31]
[394804978,1763969439201,-500.0,0.00041534,31]
[394804979,1763969439210,-500.0,0.00041534,31]
[394804980,1763969439220,-500.0,0.00041534,31]
[394804981,1763969439230,-500.0,0.00041534,31]
[394804982,1763969439240,-500.0,0.00041534,31]
[394804983,1763969439250,-500.0,0.00041534,31]
[394804985,1763969439259,-500.0,0.00041534,31]
[394804987,1763969439269,-500.0,0.00041534,31]
[394804989,1763969439280,-500.0,0.00041534,31]
[394804991,1763969439289,-500.0,0.00041534,31]
[394804993,1763969439298,-500.0,0.00041534,31]
[394804995,1763969439308,-500.0,0.00041534,31]
[394804997,1763969439317,-500.0,0.00041534,31]
[394804999,1763969439327,-500.0,0.00041534,31]
[394805000,1763969439336,-500.0,0.00041534,31]
[394805002,1763969439345,-500.0,0.00041534,31]